bitfinex/quotes_ETHUSD_20250725
["timestamp","ask_amount","ask_price","bid_price","bid_amount"]
[1753418750327,0.6071,3627.5,3627.4,7.1557955]
[1753418750522,0.1376,3627.5,3627.4,7.1557955]
[1753418751058,0.1376,3627.5,3627.4,8.0861955]
[1753418752021,0.1376,3627.5,3627.4,7.1557955]
[1753418752843,0.1376,3627.5,3627.4,7.1547955]
[1753418753046,0.1376,3627.5,3627.4,2.7567955]
[1753418753230,0.6071,3627.5,3627.4,7.1547955]
[1753418753431,0.1376,3627.5,3627.4,7.1547955]
[1753418753958,0.1376,3627.5,3627.4,8.8381955]
[1753418754448,0.002,3627.8,3627.7,2.75656752]
[1753418754630,0.002,3627.8,3627.7,7.15456752]
[1753418754954,0.002,3627.8,3627.7,7.60366752]
[1753418755249,1e-08,3627.8,3627.7,10.02339997]
[1753418755549,1e-08,3628.2,3628.1,3.5886636]
[1753418755749,1e-08,3628.2,3628.1,18.5337629]
[1753418755915,1e-08,3628.2,3628.1,19.4641629]
[1753418758825,1e-08,3628.2,3628.1,19.4621629]
[1753418759623,0.002,3629.4,3629.3,2.75535227]
[1753418759822,0.002,3629.4,3629.3,7.15135227]
[1753418760215,0.4715,3629.4,3629.3,7.15135227]
[1753418760757,0.7659,3629.3,3628.9,4.396]
[1753418760918,0.7659,3629.3,3627.9,0.4491]
[1753418760919,1.24161,3629.2,3627.9,0.4491]
[1753418761118,0.002,3629.4,3628.7,2.75578593]
[1753418761119,1.5521,3629.1,3628.7,2.75578593]
[1753418761326,0.4695,3629.0,3628.6,4.395]
[1753418761553,0.4695,3629.0,3628.9,2.75564841]
[1753418761727,0.7659,3629.1,3629.0,2.75558004]
[1753418761925,1.2354,3629.1,3629.0,2.75558004]
[1753418762120,0.7659,3629.1,3629.0,2.75558004]
[1753418762620,0.4695,3629.1,3628.9,4.395]
[1753418762847,0.77,3629.4,3629.1,2.75544379]
[1753418763152,0.77,3629.4,3629.0,2.75558004]
[1753418763153,0.7862,3629.3,3629.0,2.75558004]
[1753418763321,0.3167,3629.3,3629.1,2.75548812]
[1753418763521,0.4695,3629.2,3629.1,2.75548812]
[1753418763954,0.4695,3629.2,3629.0,2.75556767]
[1753418764253,0.4695,3629.2,3628.2,1.2092]
[1753418764254,0.62512,3629.1,3627.9,0.7601]
[1753418764557,1.5855,3629.0,3628.0,4.395]
[1753418764766,4.27455,3629.0,3628.4,2.75596093]
[1753418764968,0.4695,3628.9,3628.8,2.75573192]
[1753418765265,0.9238,3628.9,3628.4,4.394]
[1753418765566,0.9238,3628.9,3627.6,0.5867]
[1753418765567,0.7862,3628.8,3628.6,2.75583437]
[1753418765739,0.4695,3628.7,3628.6,2.75588381]
[1753418765942,0.6071,3628.7,3628.6,2.75588381]
[1753418767035,0.6071,3628.7,3628.5,2.75593326]
[1753418767235,0.4695,3628.6,3628.5,2.75593326]
[1753418767434,0.6071,3628.6,3628.4,4.394]
[1753418767658,0.6071,3628.6,3628.5,2.75595976]
[1753418768068,0.1376,3628.6,3628.5,2.75595976]
[1753418768866,0.1376,3628.6,3628.5,3.20505976]
[1753418770371,0.1396,3628.6,3628.5,3.20505976]
[1753418770867,0.1396,3628.6,3628.5,2.75595976]
[1753418771057,0.1396,3628.6,3628.5,7.14895976]
[1753418771259,0.1396,3628.6,3628.5,7.59805976]
[1753418771578,0.6091,3628.6,3627.6,0.4813]
[1753418771773,0.1376,3628.4,3628.1,7.14924595]
[1753418771961,0.17068,3628.4,3628.3,2.75611167]
[1753418772161,0.17068,3628.4,3628.0,4.393]
[1753418772470,0.1376,3628.2,3628.1,2.7562636]
[1753418773242,0.1376,3628.2,3628.1,3.2053636]
[1753418773871,0.1376,3628.2,3628.1,4.4667636]
[1753418775537,0.1376,3628.2,3628.1,3.9854636]
[1753418776143,0.002,3628.6,3628.1,3.9854636]
[1753418776144,0.002,3628.6,3628.5,2.75595976]
[1753418776491,0.002,3628.6,3628.5,7.14795976]
[1753418776775,0.1396,3628.6,3628.5,7.59705976]
[1753418777538,0.1396,3628.6,3628.5,8.88735976]
[1753418778077,0.1396,3628.6,3628.5,7.14695976]
[1753418778280,0.1396,3628.6,3628.5,7.58115976]
[1753418778780,0.002,3628.6,3628.5,10.26391931]
[1753418779558,0.1396,3628.6,3628.5,10.26391931]
[1753418780361,0.1396,3628.6,3628.5,5.87291931]
[1753418780574,0.1396,3628.6,3628.5,8.41235976]
[1753418780772,0.1396,3628.6,3627.1,0.041]
[1753418780773,2.75618764,3628.2,3627.1,0.041]
[1753418781096,0.8035,3627.7,3627.1,0.041]
[1753418781291,3.0,3627.5,3627.1,0.041]
[1753418781470,0.7942,3627.6,3627.1,4.431]
[1753418781650,0.8035,3627.7,3627.1,4.431]
[1753418781849,0.4775,3627.5,3627.2,4.39]
[1753418782054,0.4775,3627.5,3627.1,2.7979709]
[1753418782255,0.4775,3627.5,3627.1,4.431]
[1753418782555,0.7942,3627.4,3627.1,0.041]
[1753418782790,0.7942,3627.4,3627.2,4.39]
[1753418782958,6.46048038,3627.5,3627.1,0.041]
[1753418782959,0.4775,3627.3,3627.1,0.041]
[1753418784193,0.4775,3627.2,3627.1,0.041]
[1753418784869,3.5511475,3627.2,3627.1,0.041]
[1753418785079,4.18194445,3627.2,3627.1,0.041]
[1753418785277,1.10829695,3627.2,3627.1,2.79802351]
[1753418785587,0.4775,3627.6,3627.3,2.75684313]
[1753418785789,0.4775,3627.5,3627.3,2.75684313]
[1753418786287,0.37363438,3627.9,3627.2,5.1713]
[1753418786488,3.52831848,3628.0,3627.2,5.1713]
[1753418786709,0.37363438,3628.0,3627.3,0.02756871]
[1753418786854,0.002,3628.6,3628.5,2.75595976]
[1753418787288,0.002,3628.6,3628.5,3.67681935]
[1753418787705,0.002,3628.6,3628.5,3.19015976]
[1753418788014,0.002,3628.6,3628.5,8.25418117]
[1753418788193,0.002,3628.6,3628.5,8.71328117]
[1753418788677,0.002,3628.6,3628.5,8.25418117]
[1753418789667,0.002,3628.6,3628.5,3.86418117]
[1753418789973,0.002,3628.6,3628.5,7.14595976]
[1753418790302,0.002,3628.6,3628.5,7.14495976]
[1753418790801,0.6171,3628.6,3628.5,7.14495976]
[1753418791014,0.1396,3628.6,3628.5,7.14495976]
[1753418791508,0.1396,3628.6,3627.9,3.19057131]
[1753418791668,0.002,3628.6,3628.5,2.75595976]
[1753418792010,0.1396,3628.6,3628.5,7.14495976]
[1753418792805,0.1396,3628.6,3628.5,8.85915976]
[1753418793464,0.1396,3628.6,3628.5,4.47015976]
[1753418793665,0.1396,3628.6,3628.5,8.85915976]
[1753418793904,0.1396,3628.6,3628.5,10.02068315]
[1753418794483,0.002,3629.2,3628.5,10.02068315]
[1753418794484,1e-08,3629.2,3628.5,10.02068315]
[1753418794828,1e-08,3629.2,3629.1,2.75550411]
[1753418795006,1e-08,3629.2,3629.1,7.14450411]
[1753418795204,0.13760001,3629.2,3629.1,8.03780411]
[1753418795389,0.13760001,3629.2,3629.1,9.39271735]
[1753418795901,0.13760001,3629.2,3629.1,5.00371735]
[1753418796107,0.13760001,3629.2,3629.1,7.14350411]
[1753418796308,0.13760001,3629.2,3629.1,7.57770411]
[1753418796673,0.13760001,3629.2,3629.1,8.03680411]
[1753418797404,0.04,3629.9,3629.8,2.75497272]
[1753418797610,0.1776,3629.9,3629.8,7.14297272]
[1753418797805,0.1776,3629.9,3629.8,7.57717272]
[1753418798194,0.1776,3629.9,3629.8,7.14297272]
[1753418798393,0.04,3630.9,3630.6,2.75429183]
[1753418798819,0.4775,3630.8,3630.7,7.1422898]
[1753418799001,0.6151,3630.8,3630.7,7.1422898]
[1753418799202,0.76197,3630.8,3630.7,7.1422898]
[1753418799614,0.83444971,3630.8,3630.7,4.387]
[1753418800226,0.8297,3630.6,3630.5,4.387]
[1753418800444,0.9673,3630.6,3630.0,2.75476721]
[1753418800724,0.1376,3629.6,3629.5,2.75520044]
[1753418800884,0.8164,3629.8,3629.6,2.75510195]
[1753418801091,0.6151,3629.7,3629.1,0.7968]
[1753418801291,0.14315,3629.6,3629.2,4.387]
[1753418801532,0.4775,3629.5,3629.3,4.387]
[1753418801690,0.45087767,3629.5,3629.4,4.387]
[1753418801891,0.4543,3629.5,3629.4,4.387]
[1753418802291,0.9318,3629.5,3629.4,4.387]
[1753418802540,0.6151,3629.5,3629.4,4.387]
[1753418802699,0.1376,3629.5,3629.4,7.14227635]
[1753418804519,0.1376,3629.5,3629.4,7.57647635]
[1753418805101,0.1376,3629.5,3629.4,9.94304638]
[1753418805320,0.8324,3631.2,3629.4,9.94304638]
[1753418805321,0.4775,3630.8,3630.4,2.75445639]
[1753418805496,3.0,3631.1,3630.5,7.14043204]
[1753418805700,0.4775,3630.8,3630.6,4.386]
[1753418805912,3.0233642,3631.1,3630.6,4.386]
[1753418805913,0.4775,3630.7,3630.6,4.386]
[1753418806116,0.6151,3630.7,3630.6,4.386]
[1753418806433,0.1376,3630.7,3630.6,7.14036566]
[1753418806609,0.6151,3630.7,3630.1,0.7564]
[1753418806810,0.04,3630.9,3630.8,2.75421394]
[1753418807026,0.04,3630.9,3630.8,7.14021394]
[1753418807236,0.1776,3630.9,3630.8,7.14021394]
[1753418807412,0.1776,3630.9,3630.8,4.386]
[1753418807807,0.1776,3630.9,3630.8,7.14021394]
[1753418808421,0.1776,3630.9,3630.8,8.59837023]
[1753418808706,0.1776,3630.9,3630.8,9.09117023]
[1753418809427,0.1776,3630.9,3630.8,7.60891394]
[1753418810052,0.04,3631.9,3631.8,2.75345558]
[1753418810254,0.04,3631.9,3631.8,7.13845558]
[1753418810418,0.04,3631.9,3631.8,4.8537]
[1753418810419,0.1376,3631.9,3631.8,4.8537]
[1753418810631,0.1376,3631.9,3631.8,7.13845558]
[1753418811361,0.1376,3631.9,3631.8,2.75345558]
[1753418811508,0.1376,3631.9,3631.8,4.385]
[1753418811817,0.6244,3631.9,3631.8,4.385]
[1753418811999,0.1376,3631.9,3631.8,7.13845558]
[1753418812803,0.1376,3631.9,3631.8,2.75345558]
[1753418813041,0.6244,3631.9,3631.7,2.75350822]
[1753418813254,0.62854,3631.9,3631.8,4.385]
[1753418813405,0.14174,3631.9,3631.8,4.385]
[1753418813616,0.27934,3631.9,3631.2,7.166]
[1753418813815,0.1376,3631.9,3631.8,2.75345558]
[1753418814065,0.1376,3631.9,3631.8,4.384]
[1753418814717,0.6244,3631.9,3631.8,4.384]
[1753418816048,0.6244,3631.9,3631.2,7.166]
[1753418816245,0.4868,3631.9,3631.4,2.75375184]
[1753418816449,0.1376,3631.5,3631.3,2.75381906]
[1753418816639,0.62804,3631.9,3631.4,4.384]
[1753418816847,0.1376,3631.4,3631.2,9.91988632]
[1753418817151,0.1376,3631.4,3631.3,7.13683471]
[1753418817514,0.1376,3631.4,3631.3,4.383]
[1753418817715,0.6244,3631.4,3631.3,4.383]
[1753418818515,0.8227,3631.3,3630.1,0.8217]
[1753418818720,0.4868,3631.2,3630.3,2.75459328]
[1753418818941,0.4868,3631.2,3630.4,7.13744828]
[1753418819267,0.1376,3630.5,3630.4,7.1375111]
[1753418819618,0.1376,3630.5,3630.4,7.6062111]
[1753418819869,0.1376,3630.5,3630.4,8.0990111]
[1753418820116,0.1376,3630.5,3630.4,7.6062111]
[1753418820372,0.90373635,3631.8,3630.5,2.75444153]
[1753418820665,0.4868,3631.7,3631.2,2.75390097]
[1753418820976,0.8304,3631.6,3631.3,7.13682442]
[1753418821176,0.4868,3631.5,3631.4,4.383]
[1753418821837,0.25848896,3631.9,3631.4,4.383]
[1753418822039,0.002,3631.9,3631.4,4.8517]
[1753418822306,0.002,3631.9,3631.5,0.4687]
[1753418822543,0.002,3631.9,3631.8,2.75345558]
[1753418822783,0.002,3631.9,3631.1,0.4687]
[1753418822784,0.002,3631.9,3631.4,2.75368664]
[1753418822936,0.3187,3631.9,3631.5,7.13666276]
[1753418823272,0.4888,3631.9,3631.6,2.75360722]
[1753418823566,0.4868,3631.8,3631.7,4.383]
[1753418823774,0.6268856,3631.8,3631.7,4.383]
[1753418824774,0.6268856,3631.8,3631.7,7.1365314]
[1753418825642,0.6268856,3631.8,3631.7,4.383]
[1753418825970,0.6268856,3631.8,3631.7,1.06739319]
[1753418825971,0.9435856,3631.8,3631.7,1.06739319]
[1753418826173,0.6268856,3631.8,3630.7,2.75425322]
[1753418826372,0.14255856,3631.7,3630.8,4.8507]
[1753418826573,0.14255856,3631.7,3631.5,2.75366508]
[1753418826880,0.14255856,3631.7,3631.6,4.382]
[1753418827669,0.14255856,3631.7,3631.6,7.13560722]
[1753418827873,0.002,3631.9,3631.8,2.75345558]
[1753418828701,0.002,3631.9,3631.8,7.13545558]
[1753418829013,0.002,3631.9,3631.8,7.60415558]
[1753418829703,0.002,3631.9,3631.8,8.09695558]
[1753418830312,1e-08,3631.9,3631.8,8.87605558]
[1753418830476,0.13760001,3631.9,3631.8,8.87605558]
[1753418831804,0.13760001,3631.9,3631.8,10.0390156]
[1753418832004,0.13760001,3631.9,3631.3,0.1376]
[1753418832212,0.8182,3631.8,3630.2,0.7571]
[1753418832420,0.48680001,3631.9,3629.9,7.163]
[1753418832421,0.8182,3631.0,3630.0,2.75474622]
[1753418832566,0.8182,3631.0,3630.2,4.381]
[1753418832904,0.86862,3630.9,3630.3,4.381]
[1753418833069,0.4868,3630.9,3630.4,2.7545174]
[1753418833380,0.11551169,3631.2,3630.8,2.75414689]
[1753418833573,0.37243444,3631.4,3630.9,4.8497]
[1753418833778,0.11551169,3631.8,3631.4,2.75373416]
[1753418834102,0.11551169,3631.7,3631.6,2.75360722]
[1753418834303,1e-08,3631.9,3631.8,2.75345558]
[1753418834489,0.11566465,3631.9,3631.8,4.381]
[1753418834684,1e-08,3631.9,3631.8,4.381]
[1753418834908,1e-08,3631.9,3631.1,0.4687]
[1753418835203,1e-08,3631.9,3630.7,0.7743]
[1753418835204,0.60246464,3631.8,3630.7,0.7743]
[1753418835372,2.75361266,3631.6,3630.9,2.75412303]
[1753418835567,1.2735,3631.5,3630.9,2.75412303]
[1753418835792,0.41427773,3631.4,3631.0,7.13501963]
[1753418836011,0.41427773,3631.4,3631.0,4.381]
[1753418836223,0.7867,3631.5,3631.0,4.381]
[1753418836407,0.11566464,3631.8,3631.1,3.22268639]
[1753418836600,0.11566464,3631.8,3631.3,2.75383471]
[1753418836806,0.30005257,3631.8,3631.4,4.381]
[1753418837119,0.30005257,3631.8,3631.1,0.4687]
[1753418837120,3.43464881,3631.8,3631.5,4.381]
[1753418837426,0.4968,3631.7,3631.5,4.381]
[1753418837629,0.76373889,3631.6,3630.9,3.18373435]
[1753418837933,0.87000129,3631.7,3627.2,7.07056646]
[1753418837934,0.37320129,3631.7,3631.6,2.75360722]
[1753418838104,1e-08,3631.9,3631.6,4.381]
[1753418838303,0.11581712,3631.8,3631.3,0.8014]
[1753418838531,0.4968,3631.7,3631.4,4.381]
[1753418838763,0.36126171,3631.7,3631.5,3.18321934]
[1753418838959,0.11581712,3631.8,3631.6,4.381]
[1753418839145,0.1158825,3631.7,3630.9,0.4296]
[1753418839459,0.1158825,3631.6,3630.9,3.18373647]
[1753418839660,0.8069,3631.5,3631.0,7.13505408]
[1753418839863,0.4968,3631.4,3630.6,0.4842]
[1753418840081,0.4968,3631.4,3631.1,2.75396147]
[1753418840368,0.8069,3631.5,3631.2,4.381]
[1753418841155,0.1158825,3631.7,3631.3,2.75381273]
[1753418841340,0.56922316,3631.6,3631.2,7.56449455]
[1753418841658,0.95014066,3631.6,3631.3,4.381]
[1753418841876,0.45857793,3631.5,3630.7,7.5926]
[1753418842033,0.1376,3631.1,3630.8,4.38]
[1753418842227,2.86972288,3631.3,3630.8,4.38]
[1753418842455,0.1376,3630.9,3630.7,7.163]
[1753418842640,0.9684,3630.9,3630.7,7.163]
[1753418842964,0.4968,3630.8,3630.7,7.163]
[1753418843168,0.64332,3630.8,3630.7,11.543]
[1753418843576,6.71423394,3630.8,3630.7,4.38]
[1753418843790,0.64332,3630.8,3630.7,4.38]
[1753418843992,3.39753394,3630.8,3630.7,4.38]
[1753418844665,3.51342347,3630.8,3630.7,4.38]
[1753418844867,1e-08,3630.8,3630.7,4.38]
[1753418845048,1e-08,3631.9,3630.8,0.8012]
[1753418845245,1e-08,3631.9,3630.8,1.2308]
[1753418845450,1e-08,3631.9,3631.1,2.75398639]
[1753418845451,0.1376,3631.2,3631.1,2.75398639]
[1753418845689,0.1376,3631.2,3631.1,3.18358639]
[1753418845888,0.1376,3631.2,3631.1,7.57558639]
[1753418846577,0.1376,3631.2,3631.1,8.05978639]
[1753418846982,0.1376,3631.2,3631.1,3.18358639]
[1753418847182,0.1376,3631.2,3631.1,2.75398639]
[1753418847495,0.1376,3631.2,3631.1,4.39]
[1753418847788,0.1376,3631.2,3631.1,7.57358639]
[1753418847991,0.1376,3631.2,3631.1,7.14398639]
[1753418848201,0.1376,3631.2,3631.1,7.57358639]
[1753418849291,0.1376,3631.2,3631.1,3.18358639]
[1753418849613,0.1376,3631.2,3631.1,7.13898639]
[1753418849957,0.1376,3631.2,3631.1,7.96588639]
[1753418850157,0.1376,3631.2,3631.1,8.45008639]
[1753418851093,0.1376,3631.2,3631.1,2.75398639]
[1753418851319,0.1376,3631.2,3631.1,7.13798639]
[1753418851666,0.1376,3631.2,3631.1,7.14398639]
[1753418853105,0.1376,3631.2,3631.1,2.75398639]
[1753418853282,0.1376,3631.2,3631.1,7.14498639]
[1753418854181,0.1376,3631.2,3630.8,3.18374011]
[1753418854403,1e-08,3631.9,3631.2,2.75391055]
[1753418854404,0.8198,3631.3,3631.2,2.75391055]
[1753418854595,0.4968,3631.5,3631.2,7.13991055]
[1753418854771,0.1376,3631.3,3631.2,4.386]
[1753418854968,0.28302,3631.3,3631.2,7.13991055]
[1753418855792,0.28302,3631.3,3631.2,4.386]
[1753418856382,0.1376,3631.3,3631.2,7.13991055]
[1753418856611,0.1376,3631.3,3631.2,8.05371055]
[1753418856968,0.1376,3631.3,3631.2,7.56751055]
[1753418857613,0.1376,3631.3,3631.1,2.75393605]
[1753418857773,0.1376,3631.3,3631.2,7.13991055]
[1753418857979,0.4968,3631.7,3631.1,2.75393176]
[1753418858306,2.75351845,3631.8,3631.4,2.75368669]
[1753418858307,0.62503185,3631.6,3631.4,2.75368669]
[1753418858513,1e-08,3631.9,3631.5,4.385]
[1753418858681,1e-08,3631.9,3631.6,4.385]
[1753418859015,1e-08,3631.9,3631.7,4.384]
[1753418859507,3.6344,3631.8,3631.7,4.384]
[1753418859710,4.68334278,3631.8,3631.7,4.384]
[1753418859884,1.68334278,3631.8,3631.7,4.384]
[1753418860081,0.6344,3631.8,3631.7,4.384]
[1753418860288,0.753,3631.5,3630.8,0.7552]
[1753418860594,0.753,3631.5,3631.2,2.75389877]
[1753418860797,0.4968,3631.4,3631.3,4.381]
[1753418861105,0.753,3631.5,3631.3,4.381]
[1753418861303,0.753,3631.5,3631.3,7.13483471]
[1753418861304,0.1376,3631.4,3631.3,7.13483471]
[1753418861469,0.1376,3631.4,3631.3,4.381]
[1753418861670,0.1376,3631.4,3631.3,7.56443471]
[1753418866113,0.1376,3631.4,3631.3,2.75383471]
[1753418866424,0.1376,3631.4,3631.3,7.13483471]
[1753418866613,0.1376,3631.4,3631.3,7.56443471]
[1753418867007,0.1376,3631.4,3631.3,7.13483471]
[1753418867208,0.6116,3631.4,3631.3,7.13483471]
[1753418867510,0.6116,3631.4,3631.1,0.001]
[1753418867695,0.474,3631.3,3631.2,7.13491055]
[1753418868208,0.6116,3631.3,3631.2,2.75391055]
[1753418868411,0.6116,3631.3,3631.2,7.13491055]
[1753418869221,0.6116,3631.3,3631.2,4.381]
[1753418869426,0.6116,3631.3,3631.1,0.001]
[1753418869649,0.474,3631.2,3631.1,2.75498339]
[1753418869792,0.474,3631.2,3631.1,4.382]
[1753418869993,0.1376,3631.3,3631.1,4.382]
[1753418870215,0.1376,3631.3,3631.2,2.75391055]
[1753418870420,0.1376,3631.3,3631.2,7.13491055]
[1753418870631,0.1376,3631.3,3631.2,7.13391055]
[1753418870893,0.1376,3631.3,3631.2,8.03141055]
[1753418871094,0.6116,3631.3,3631.2,4.38]
[1753418871359,0.6116,3631.3,3631.2,7.13391055]
[1753418871636,0.1376,3631.3,3631.2,7.13391055]
[1753418871805,0.1376,3631.3,3631.2,2.75391055]
[1753418872012,0.1376,3631.3,3631.2,4.38]
[1753418872333,0.1376,3631.3,3631.2,7.13391055]
[1753418873134,0.6116,3631.3,3631.1,2.75498326]
[1753418873331,0.6116,3631.3,3631.2,7.13391055]
[1753418873747,0.7952,3631.2,3631.1,0.001]
[1753418873960,1.2692,3631.2,3631.1,4.381]
[1753418874140,0.7952,3631.2,3631.1,4.381]
[1753418874444,1.2692,3631.2,3631.1,0.001]
[1753418874939,1.2692,3631.2,3631.1,4.381]
[1753418875150,1.2692,3631.2,3631.1,0.001]
[1753418875315,1.2692,3631.2,3631.1,4.381]
[1753418876029,0.1376,3631.3,3631.1,0.001]
[1753418876227,0.1376,3631.3,3631.2,2.75391055]
[1753418876420,0.1376,3631.3,3631.2,7.38730946]
[1753418876619,0.1376,3631.3,3631.2,4.63339891]
[1753418876819,0.6116,3631.3,3631.2,4.63339891]
[1753418877247,0.6116,3631.3,3631.2,0.25339891]
[1753418877248,0.7493,3631.3,3631.2,0.25339891]
[1753418877409,0.7493,3631.3,3631.2,4.38]
[1753418877949,0.83540988,3631.3,3631.2,4.38]
[1753418878145,3.83540988,3631.3,3631.2,4.38]
[1753418878362,0.7493,3631.3,3631.2,4.38]
[1753418878507,0.83541423,3631.3,3631.1,0.001]
[1753418878849,0.83291042,3631.2,3631.1,0.001]
[1753418879142,0.83291042,3631.2,3631.1,4.381]
[1753418879345,0.83291042,3631.2,3631.1,0.001]
[1753418879736,0.83291042,3631.2,3631.1,4.381]
[1753418880246,0.474,3631.2,3631.1,4.381]
[1753418881106,0.2753,3631.3,3631.1,0.001]
[1753418881315,0.2753,3631.3,3631.2,4.38]
[1753418881715,0.7493,3631.3,3631.2,4.38]
[1753418882165,0.7493,3631.3,3631.1,0.001]
[1753418882363,0.85754142,3631.2,3631.1,0.001]
[1753418882664,3.85754142,3631.2,3631.1,0.001]
[1753418882864,0.94365565,3631.2,3631.1,4.381]
[1753418883258,0.85754142,3631.2,3631.1,4.381]
[1753418883823,0.85754142,3631.2,3631.1,0.001]
[1753418884030,3.85754142,3631.2,3631.1,0.001]
[1753418884255,0.46965565,3631.2,3631.1,4.381]
[1753418884458,3.2753,3631.3,3631.1,4.381]
[1753418884636,0.474,3631.2,3631.1,0.001]
[1753418884841,0.474,3631.2,3631.1,4.381]
[1753418885082,0.474,3631.2,3631.1,0.001]
[1753418885471,0.2753,3631.3,3631.1,4.381]
[1753418885764,0.2753,3631.3,3631.1,7.57045116]
[1753418885965,0.1376,3631.3,3631.2,3.18941055]
[1753418886441,0.1376,3631.3,3631.2,4.41191055]
[1753418886768,0.08611423,3631.7,3631.2,4.41191055]
[1753418886932,0.08611423,3631.8,3631.5,2.75367775]
[1753418887265,0.08611423,3631.8,3631.1,4.381]
[1753418887266,0.56011423,3631.7,3631.1,2.7549378]
[1753418887476,0.474,3631.7,3631.2,4.379]
[1753418887781,0.474,3631.7,3631.4,2.75374472]
[1753418887942,0.474,3631.7,3631.3,7.56830591]
[1753418888276,0.35601142,3631.6,3631.4,2.75374339]
[1753418888458,0.08611423,3631.8,3631.5,3.18918305]
[1753418888642,1e-08,3631.9,3631.6,7.13260722]
[1753418888874,1e-08,3631.9,3631.7,4.379]
[1753418889473,1e-08,3631.9,3631.1,0.463]
[1753418889474,0.474,3631.8,3631.2,0.4355]
[1753418889679,0.56011423,3631.8,3631.3,4.379]
[1753418890003,0.56011423,3631.8,3631.4,3.1891989]
[1753418890201,0.35601142,3631.7,3631.5,7.13267786]
[1753418890392,0.35601142,3631.7,3631.6,0.4355]
[1753418890596,0.08611423,3631.8,3631.6,0.4355]
[1753418890905,0.08611423,3631.8,3631.5,7.13267786]
[1753418891202,0.08611423,3631.8,3631.6,3.18908209]
[1753418891401,0.08611423,3631.8,3631.6,3.18904933]
[1753418891575,1e-08,3631.9,3631.6,2.75354933]
[1753418891758,1e-08,3631.9,3631.7,0.4355]
[1753418891959,1e-08,3631.9,3631.8,4.379]
[1753418892604,1e-08,3631.9,3631.8,7.13245558]
[1753418893004,1e-08,3631.9,3631.8,4.379]
[1753418893210,1e-08,3631.9,3631.8,7.13245558]
[1753418893425,1e-08,3631.9,3631.8,4.379]
[1753418893699,1e-08,3631.9,3631.8,4.8145]
[1753418894204,1e-08,3631.9,3631.8,7.56795558]
[1753418895003,1e-08,3631.9,3631.8,8.79545558]
[1753418895161,1e-08,3631.9,3631.7,2.75351078]
[1753418895366,1e-08,3631.9,3631.8,4.378]
[1753418895890,1e-08,3631.9,3631.8,7.13145558]
[1753418896063,1e-08,3631.9,3631.8,7.56695558]
[1753418896263,0.47400001,3631.9,3631.8,4.378]
[1753418896497,1e-08,3631.9,3631.8,7.13145558]
[1753418896671,0.13760001,3631.9,3631.8,7.13145558]
[1753418897003,0.13760001,3631.9,3631.8,7.57485558]
[1753418897306,0.13760001,3631.9,3631.8,4.8214]
[1753418897605,0.13760001,3631.9,3631.8,4.378]
[1753418898166,0.13760001,3631.9,3631.7,2.7535125]
[1753418898393,0.60210001,3631.9,3631.5,2.75367064]
[1753418898592,0.46450001,3631.9,3631.6,7.13057686]
[1753418898790,0.46450001,3631.9,3631.6,2.75357686]
[1753418898998,0.33057668,3631.9,3631.7,7.13051279]
[1753418899186,1e-08,3631.9,3631.7,7.13051279]
[1753418899387,0.1376,3631.8,3631.7,7.13051279]
[1753418900320,0.1376,3631.8,3631.7,7.57391279]
[1753418901793,0.1376,3631.8,3631.7,8.05531279]
[1753418902927,0.1376,3631.8,3631.7,7.57391279]
[1753418903592,0.1376,3631.8,3631.7,8.05531279]
[1753418903791,0.1376,3631.8,3631.7,8.83231279]
[1753418903999,0.08608431,3632.3,3631.7,8.83231279]
[1753418904000,0.08608431,3632.3,3632.2,2.75315235]
[1753418904308,0.002,3632.6,3632.5,2.75292498]
[1753418904612,0.002,3632.6,3632.5,7.12892498]
[1753418904814,0.002,3632.6,3632.5,7.57232498]
[1753418904815,0.1396,3632.6,3632.5,7.57232498]
[1753418906207,0.1396,3632.6,3632.5,3.67772498]
[1753418906542,0.1396,3632.6,3632.5,7.57232498]
[1753418906728,0.1396,3632.6,3632.5,3.67772498]
[1753418906918,0.002,3632.6,3632.5,7.57232498]
[1753418907100,0.002,3632.6,3632.5,2.75292498]
[1753418907301,0.002,3632.6,3632.5,7.57132498]
[1753418908851,0.002,3632.6,3632.5,8.05272498]
[1753418910322,0.002,3632.6,3632.5,3.19632498]
[1753418910527,0.002,3632.6,3632.5,7.12692498]
[1753418911243,0.002,3632.6,3632.5,7.57032498]
[1753418911426,0.002,3632.6,3632.5,3.19632498]
[1753418911823,0.002,3632.6,3632.5,7.57032498]
[1753418912065,0.002,3632.6,3632.5,9.92653889]
[1753418912377,0.002,3632.6,3632.5,9.44513889]
[1753418912540,0.002,3632.6,3632.5,9.92653889]
[1753418913869,0.002,3632.6,3632.5,9.44513889]
[1753418914889,0.002,3632.6,3632.5,9.92653889]
[1753418916508,0.002,3632.6,3632.5,9.44513889]
[1753418916801,0.1396,3632.6,3632.5,9.44513889]
[1753418917694,1e-08,3632.9,3632.8,2.75269764]
[1753418917855,1e-08,3632.9,3632.8,7.12569764]
[1753418918052,0.13760001,3632.9,3632.8,8.05049764]
[1753418918257,0.13760001,3632.9,3632.8,10.65118987]
[1753418919055,0.13760001,3632.9,3632.8,10.16878987]
[1753418919341,0.13760001,3632.9,3632.8,10.65018987]
[1753418919835,0.13760001,3632.9,3632.8,10.16878987]
[1753418919986,0.13760001,3632.9,3632.8,7.56809764]
[1753418920186,1e-08,3632.9,3632.8,8.83659764]
[1753418920394,0.002,3633.4,3633.3,2.75231882]
[1753418920630,0.1376,3633.6,3633.5,2.75216733]
[1753418920933,0.04,3633.9,3633.8,2.75194011]
[1753418921144,0.04,3633.9,3633.8,7.12394011]
[1753418921290,0.1776,3633.9,3633.8,3.19534011]
[1753418921485,0.1776,3633.9,3633.8,7.56734011]
[1753418921736,0.1776,3633.9,3633.8,8.04874011]